[Event "Titled Tuesday Blitz July 25 Late 2023"]
[White "Rian, Kapriaga"]
[Black "Barria Santos, Jose Guilherme"]
[WhiteFideId "7103263"]
[BlackFideId "1939300"]
[WhiteElo "2369"]
[BlackElo "2580"]
[Result "0-1"]
[Round "2"]
[TimeControl "180+2"]
[Date "2023.07.25"]
[WhiteClock "0:00:00"]
[BlackClock "0:00:11"]
[Board "128"]

1. d4 {[%clk 0:03:00]}  Nf6 {[%clk 0:02:59]} 2. Nf3 {[%clk 0:02:59]}  g6 {[%clk 0:02:59]} 3. c4 {[%clk 0:02:57]}  Bg7 {[%clk 0:02:36]} 4. Nc3 {[%clk 0:02:56]}  d6 {[%clk 0:02:34]} 5. e4 {[%clk 0:02:56]}  O-O {[%clk 0:02:32]} 6. h3 {[%clk 0:02:56]}  e5 {[%clk 0:02:31]} 7. d5 {[%clk 0:02:55]}  Nh5 {[%clk 0:02:31]} 8. Be2 {[%clk 0:02:52]}  a5 {[%clk 0:02:20]} 9. O-O {[%clk 0:02:46]}  Na6 {[%clk 0:02:19]} 10. Be3 {[%clk 0:02:45]}  Nf4 {[%clk 0:02:14]} 11. Nd2 {[%clk 0:02:37]}  f5 {[%clk 0:02:08]} 12. Qc2 {[%clk 0:02:22]}  fxe4 {[%clk 0:02:00]} 13. Ndxe4 {[%clk 0:02:12]}  Bxh3 {[%clk 0:01:36]} 14. gxh3 {[%clk 0:02:09]}  Nxh3+ {[%clk 0:01:32]} 15. Kg2 {[%clk 0:01:59]}  Nf4+ {[%clk 0:01:31]} 16. Bxf4 {[%clk 0:01:55]}  Rxf4 {[%clk 0:01:21]} 17. Rh1 {[%clk 0:01:42]}  Qf8 {[%clk 0:01:18]} 18. Raf1 {[%clk 0:01:18]}  Qf5 {[%clk 0:01:07]} 19. Bd3 {[%clk 0:01:11]}  Nb4 {[%clk 0:01:07]} 20. Qe2 {[%clk 0:01:06]}  Nxd3 {[%clk 0:01:07]} 21. Qxd3 {[%clk 0:01:05]}  Rg4+ {[%clk 0:01:08]} 22. Kh2 {[%clk 0:00:57]}  Qh5+ {[%clk 0:01:06]} 23. Qh3 {[%clk 0:00:53]}  Rh4 {[%clk 0:01:07]} 24. Kg2 {[%clk 0:00:52]}  Rxh3 {[%clk 0:01:06]} 25. Rxh3 {[%clk 0:00:50]}  Qg4+ {[%clk 0:01:05]} 26. Rg3 {[%clk 0:00:44]}  Qd7 {[%clk 0:00:55]} 27. Rh1 {[%clk 0:00:42]}  Rf8 {[%clk 0:00:52]} 28. Ng5 {[%clk 0:00:38]}  Qf5 {[%clk 0:00:50]} 29. Nce4 {[%clk 0:00:28]}  h6 {[%clk 0:00:44]} 30. Rf3 {[%clk 0:00:27]}  Qg4+ {[%clk 0:00:44]} 31. Rg3 {[%clk 0:00:27]}  Qe2 {[%clk 0:00:44]} 32. Re3 {[%clk 0:00:23]}  Qxc4 {[%clk 0:00:37]} 33. Ne6 {[%clk 0:00:22]}  Qxd5 {[%clk 0:00:34]} 34. Nxf8 {[%clk 0:00:20]}  Kxf8 {[%clk 0:00:31]} 35. Rhh3 {[%clk 0:00:17]}  g5 {[%clk 0:00:27]} 36. Rhf3+ {[%clk 0:00:17]}  Kg8 {[%clk 0:00:27]} 37. Kg3 {[%clk 0:00:14]}  Qe6 {[%clk 0:00:23]} 38. Kg2 {[%clk 0:00:12]}  d5 {[%clk 0:00:19]} 39. Ng3 {[%clk 0:00:12]}  e4 {[%clk 0:00:17]} 40. Rf5 {[%clk 0:00:12]}  c6 {[%clk 0:00:15]} 41. Ra3 {[%clk 0:00:12]}  b6 {[%clk 0:00:15]} 42. b4 {[%clk 0:00:12]}  axb4 {[%clk 0:00:14]} 43. Ra7 {[%clk 0:00:11]}  d4 {[%clk 0:00:11]} 44. Rc7 {[%clk 0:00:10]}  e3 {[%clk 0:00:11]} 45. Rc8+ {[%clk 0:00:09]}  Qxc8 {[%clk 0:00:10]} 46. fxe3 {[%clk 0:00:08]}  dxe3 {[%clk 0:00:11]} 47. Nh5 {[%clk 0:00:00]}  Qxf5 {[%clk 0:00:11]} 0-1


[Site "https://www.chess.com"]

[Event "Titled Tuesday Blitz July 25 Late 2023"]
[White "Hajiyev, Kanan"]
[Black "Gerbelli Neto, Eduardo"]
[WhiteFideId "13404148"]
[BlackFideId "2103281"]
[WhiteElo "2576"]
[BlackElo "2369"]
[Result "1-0"]
[Round "2"]
[TimeControl "180+2"]
[Date "2023.07.25"]
[WhiteClock "0:00:34"]
[BlackClock "0:00:00"]
[Board "129"]

1. d4 {[%clk 0:03:00]}  d5 {[%clk 0:02:59]} 2. Nf3 {[%clk 0:03:01]}  Nf6 {[%clk 0:02:59]} 3. c4 {[%clk 0:03:02]}  c6 {[%clk 0:02:59]} 4. cxd5 {[%clk 0:03:03]}  cxd5 {[%clk 0:02:59]} 5. Nc3 {[%clk 0:03:04]}  Nc6 {[%clk 0:02:59]} 6. Bg5 {[%clk 0:03:04]}  Ne4 {[%clk 0:02:54]} 7. Bf4 {[%clk 0:03:05]}  e6 {[%clk 0:02:52]} 8. e3 {[%clk 0:03:05]}  Bb4 {[%clk 0:02:52]} 9. Qb3 {[%clk 0:03:04]}  Qa5 {[%clk 0:02:52]} 10. Rc1 {[%clk 0:03:04]}  O-O {[%clk 0:02:46]} 11. Bd3 {[%clk 0:03:04]}  f5 {[%clk 0:02:44]} 12. O-O {[%clk 0:03:03]}  Bxc3 {[%clk 0:02:38]} 13. bxc3 {[%clk 0:03:04]}  Qb6 {[%clk 0:02:39]} 14. c4 {[%clk 0:02:55]}  Qxb3 {[%clk 0:02:19]} 15. axb3 {[%clk 0:02:55]}  Na5 {[%clk 0:02:20]} 16. cxd5 {[%clk 0:02:47]}  exd5 {[%clk 0:01:56]} 17. b4 {[%clk 0:02:47]}  Nc6 {[%clk 0:01:55]} 18. b5 {[%clk 0:02:47]}  Nb4 {[%clk 0:01:53]} 19. Bb1 {[%clk 0:02:31]}  Bd7 {[%clk 0:01:53]} 20. Rc7 {[%clk 0:02:30]}  Bxb5 {[%clk 0:01:47]} 21. Rfc1 {[%clk 0:02:30]}  Bc6 {[%clk 0:01:36]} 22. Bxe4 {[%clk 0:02:13]}  fxe4 {[%clk 0:01:34]} 23. Ng5 {[%clk 0:02:14]}  Nd3 {[%clk 0:01:15]} 24. Ne6 {[%clk 0:02:06]}  Rf7 {[%clk 0:01:11]} 25. Rb1 {[%clk 0:01:43]}  Nxf4 {[%clk 0:01:07]} 26. exf4 {[%clk 0:01:38]}  Re8 {[%clk 0:00:59]} 27. Rxf7 {[%clk 0:01:33]}  Kxf7 {[%clk 0:00:59]} 28. Nc5 {[%clk 0:01:28]}  Re7 {[%clk 0:00:56]} 29. g4 {[%clk 0:01:23]}  g6 {[%clk 0:00:56]} 30. Kg2 {[%clk 0:01:23]}  e3 {[%clk 0:00:53]} 31. fxe3 {[%clk 0:01:23]}  b6 {[%clk 0:00:49]} 32. Nd3 {[%clk 0:01:23]}  Be8 {[%clk 0:00:32]} 33. Ne5+ {[%clk 0:01:23]}  Ke6 {[%clk 0:00:31]} 34. Rc1 {[%clk 0:01:20]}  Kd6 {[%clk 0:00:31]} 35. h4 {[%clk 0:01:18]}  Rc7 {[%clk 0:00:30]} 36. Ra1 {[%clk 0:01:16]}  a5 {[%clk 0:00:30]} 37. Rb1 {[%clk 0:01:16]}  b5 {[%clk 0:00:30]} 38. f5 {[%clk 0:01:10]}  gxf5 {[%clk 0:00:30]} 39. gxf5 {[%clk 0:01:10]}  Rc2+ {[%clk 0:00:28]} 40. Kf3 {[%clk 0:01:07]}  a4 {[%clk 0:00:29]} 41. f6 {[%clk 0:01:07]}  Ke6 {[%clk 0:00:27]} 42. f7 {[%clk 0:01:06]}  Bxf7 {[%clk 0:00:25]} 43. Rxb5 {[%clk 0:01:06]}  Bh5+ {[%clk 0:00:22]} 44. Kf4 {[%clk 0:01:05]}  Rf2+ {[%clk 0:00:20]} 45. Kg5 {[%clk 0:01:05]}  Rf5+ {[%clk 0:00:20]} 46. Kh6 {[%clk 0:01:06]}  Be2 {[%clk 0:00:17]} 47. Rb6+ {[%clk 0:01:04]}  Ke7 {[%clk 0:00:17]} 48. Rb7+ {[%clk 0:01:03]}  Kd6 {[%clk 0:00:17]} 49. Ra7 {[%clk 0:01:02]}  Rh5+ {[%clk 0:00:16]} 50. Kg7 {[%clk 0:01:01]}  Rxh4 {[%clk 0:00:16]} 51. Kf6 {[%clk 0:00:59]}  Rh6+ {[%clk 0:00:15]} 52. Kg5 {[%clk 0:00:59]}  Rh3 {[%clk 0:00:15]} 53. Kf4 {[%clk 0:00:58]}  Bd1 {[%clk 0:00:11]} 54. Kf5 {[%clk 0:00:52]}  Rh5+ {[%clk 0:00:10]} 55. Kf6 {[%clk 0:00:51]}  Rh6+ {[%clk 0:00:07]} 56. Kf7 {[%clk 0:00:51]}  Bh5+ {[%clk 0:00:05]} 57. Kg7 {[%clk 0:00:52]}  Rg6+ {[%clk 0:00:01]} 58. Nxg6 {[%clk 0:00:48]}  Bxg6 {[%clk 0:00:02]} 59. Rxa4 {[%clk 0:00:48]}  Ke6 {[%clk 0:00:02]} 60. Ra5 {[%clk 0:00:35]}  Bd3 {[%clk 0:00:02]} 61. Kh6 {[%clk 0:00:34]}  Be4 {[%clk 0:00:00]} 62. Kg5 {[%clk 0:00:34]} 1-0


[Site "https://www.chess.com"]

[Event "Titled Tuesday Blitz July 25 Late 2023"]
[White "Cooklev, Steven"]
[Black "Veiga, Jose Francisco R P Neves"]
[WhiteFideId "2050552"]
[BlackFideId "1930087"]
[WhiteElo "2368"]
[BlackElo "2572"]
[Result "0-1"]
[Round "2"]
[TimeControl "180+2"]
[Date "2023.07.25"]
[WhiteClock "0:00:11"]
[BlackClock "0:01:08"]
[Board "130"]

1. e4 {[%clk 0:03:00]}  Nc6 {[%clk 0:03:00]} 2. d4 {[%clk 0:02:59]}  d5 {[%clk 0:03:00]} 3. exd5 {[%clk 0:02:58]}  Qxd5 {[%clk 0:03:01]} 4. Nf3 {[%clk 0:02:58]}  Bg4 {[%clk 0:03:01]} 5. Be2 {[%clk 0:02:55]}  e6 {[%clk 0:03:00]} 6. c4 {[%clk 0:02:49]}  Qd7 {[%clk 0:02:55]} 7. O-O {[%clk 0:02:45]}  O-O-O {[%clk 0:02:55]} 8. Be3 {[%clk 0:02:37]}  Nf6 {[%clk 0:02:55]} 9. Nc3 {[%clk 0:02:05]}  Bxf3 {[%clk 0:02:49]} 10. Bxf3 {[%clk 0:02:06]}  Nxd4 {[%clk 0:02:49]} 11. Bxd4 {[%clk 0:02:00]}  Qxd4 {[%clk 0:02:50]} 12. Qb3 {[%clk 0:02:00]}  Qb6 {[%clk 0:02:49]} 13. Qc2 {[%clk 0:01:51]}  Be7 {[%clk 0:02:48]} 14. b4 {[%clk 0:01:48]}  Qd4 {[%clk 0:02:38]} 15. Nb5 {[%clk 0:01:44]}  Qb6 {[%clk 0:02:33]} 16. Rab1 {[%clk 0:01:27]}  a6 {[%clk 0:02:32]} 17. a4 {[%clk 0:01:23]}  axb5 {[%clk 0:02:31]} 18. axb5 {[%clk 0:01:24]}  Kb8 {[%clk 0:02:27]} 19. Qa4 {[%clk 0:01:24]}  Qa7 {[%clk 0:02:27]} 20. Qb3 {[%clk 0:01:23]}  Qb6 {[%clk 0:01:59]} 21. Ra1 {[%clk 0:01:22]}  c6 {[%clk 0:01:59]} 22. bxc6 {[%clk 0:01:14]}  Kc7 {[%clk 0:01:59]} 23. cxb7 {[%clk 0:01:07]}  Rd4 {[%clk 0:01:59]} 24. c5 {[%clk 0:01:03]}  Qxb4 {[%clk 0:01:59]} 25. Qe3 {[%clk 0:00:53]}  Qxc5 {[%clk 0:01:40]} 26. Ra8 {[%clk 0:00:37]}  Rb8 {[%clk 0:01:23]} 27. Qb3 {[%clk 0:00:16]}  Nd5 {[%clk 0:01:20]} 28. Rfa1 {[%clk 0:00:14]}  Nb6 {[%clk 0:01:18]} 29. g3 {[%clk 0:00:12]}  Rd2 {[%clk 0:01:08]} 30. Rxb8 {[%clk 0:00:11]}  Qxf2+ {[%clk 0:01:07]} 31. Kh1 {[%clk 0:00:11]}  Qxh2# {[%clk 0:01:08]} 0-1


[Site "https://www.chess.com"]

[Event "Titled Tuesday Blitz July 25 Late 2023"]
[White "Tarasova, Viktoriya"]
[Black "Medina Paz, Miguel"]
[WhiteFideId "4175840"]
[BlackFideId "7300379"]
[WhiteElo "2367"]
[BlackElo "2564"]
[Result "0-1"]
[Round "2"]
[TimeControl "180+2"]
[Date "2023.07.25"]
[WhiteClock "0:00:00"]
[BlackClock "0:01:27"]
[Board "131"]

1. d4 {[%clk 0:02:55]}  e6 {[%clk 0:02:59]} 2. c4 {[%clk 0:02:54]}  Nf6 {[%clk 0:02:59]} 3. Nc3 {[%clk 0:02:53]}  Bb4 {[%clk 0:03:00]} 4. Nf3 {[%clk 0:02:53]}  Bxc3+ {[%clk 0:03:00]} 5. bxc3 {[%clk 0:02:53]}  d6 {[%clk 0:03:00]} 6. Qc2 {[%clk 0:02:49]}  c5 {[%clk 0:02:59]} 7. e4 {[%clk 0:02:49]}  e5 {[%clk 0:02:56]} 8. d5 {[%clk 0:02:49]}  Nbd7 {[%clk 0:02:54]} 9. Bd3 {[%clk 0:02:47]}  h6 {[%clk 0:02:51]} 10. O-O {[%clk 0:02:46]}  g5 {[%clk 0:02:51]} 11. Ne1 {[%clk 0:02:46]}  Nf8 {[%clk 0:02:51]} 12. g3 {[%clk 0:02:24]}  Bh3 {[%clk 0:02:50]} 13. Ng2 {[%clk 0:02:25]}  Ng6 {[%clk 0:02:49]} 14. Rb1 {[%clk 0:02:14]}  Qd7 {[%clk 0:02:45]} 15. Qb3 {[%clk 0:01:59]}  O-O-O {[%clk 0:02:42]} 16. a4 {[%clk 0:01:50]}  Rhg8 {[%clk 0:02:41]} 17. a5 {[%clk 0:01:51]}  Nf4 {[%clk 0:02:38]} 18. Bxf4 {[%clk 0:01:47]}  gxf4 {[%clk 0:02:38]} 19. a6 {[%clk 0:01:47]}  b6 {[%clk 0:02:38]} 20. Qa2 {[%clk 0:01:31]}  Bxg2 {[%clk 0:02:23]} 21. Kxg2 {[%clk 0:01:30]}  f3+ {[%clk 0:02:24]} 22. Kxf3 {[%clk 0:01:29]}  Qh3 {[%clk 0:02:20]} 23. Ke2 {[%clk 0:01:09]}  Kb8 {[%clk 0:02:17]} 24. Qa4 {[%clk 0:01:00]}  Rc8 {[%clk 0:02:17]} 25. Rb2 {[%clk 0:00:44]}  Rc7 {[%clk 0:02:12]} 26. Rfb1 {[%clk 0:00:44]}  Nd7 {[%clk 0:02:12]} 27. Qd1 {[%clk 0:00:24]}  f5 {[%clk 0:02:08]} 28. Qf1 {[%clk 0:00:17]}  Qh5+ {[%clk 0:02:07]} 29. f3 {[%clk 0:00:15]}  fxe4 {[%clk 0:02:04]} 30. Bxe4 {[%clk 0:00:15]}  Qxh2+ {[%clk 0:02:03]} 31. Kd3 {[%clk 0:00:15]}  Qxg3 {[%clk 0:01:58]} 32. Qh1 {[%clk 0:00:15]}  Nf6 {[%clk 0:01:54]} 33. Qxh6 {[%clk 0:00:03]}  Nxe4 {[%clk 0:01:50]} 34. Kxe4 {[%clk 0:00:04]}  Qg6+ {[%clk 0:01:35]} 35. Qxg6 {[%clk 0:00:04]}  Rxg6 {[%clk 0:01:36]} 36. Rh2 {[%clk 0:00:04]}  Rf6 {[%clk 0:01:35]} 37. Rh8+ {[%clk 0:00:03]}  Rc8 {[%clk 0:01:36]} 38. Rbh1 {[%clk 0:00:03]}  Rf4+ {[%clk 0:01:36]} 39. Ke3 {[%clk 0:00:02]}  Rxc4 {[%clk 0:01:34]} 40. Rxc8+ {[%clk 0:00:03]}  Kxc8 {[%clk 0:01:35]} 41. Rh8+ {[%clk 0:00:04]}  Kc7 {[%clk 0:01:32]} 42. Rh7+ {[%clk 0:00:04]}  Kd8 {[%clk 0:01:33]} 43. Rxa7 {[%clk 0:00:04]}  Rxc3+ {[%clk 0:01:33]} 44. Ke4 {[%clk 0:00:04]}  Ra3 {[%clk 0:01:33]} 45. Ra8+ {[%clk 0:00:04]}  Ke7 {[%clk 0:01:33]} 46. a7 {[%clk 0:00:03]}  Kf7 {[%clk 0:01:29]} 47. Rd8 {[%clk 0:00:01]}  Rxa7 {[%clk 0:01:28]} 48. Rxd6 {[%clk 0:00:02]}  Rb7 {[%clk 0:01:27]} 49. Kxe5 {[%clk 0:00:00]}  b5 {[%clk 0:01:27]} 0-1


[Site "https://www.chess.com"]

[Event "Titled Tuesday Blitz July 25 Late 2023"]
[White "Ozates, Tuna"]
[Black "Chabris, Christopher"]
[WhiteFideId "6354521"]
[BlackFideId "2005263"]
[WhiteElo "2561"]
[BlackElo "2366"]
[Result "1-0"]
[Round "2"]
[TimeControl "180+2"]
[Date "2023.07.25"]
[WhiteClock "0:00:26"]
[BlackClock "0:00:47"]
[Board "132"]

1. e4 {[%clk 0:02:53]}  e5 {[%clk 0:02:59]} 2. Nf3 {[%clk 0:02:52]}  Nc6 {[%clk 0:02:59]} 3. Bb5 {[%clk 0:02:52]}  a6 {[%clk 0:02:59]} 4. Ba4 {[%clk 0:02:46]}  Nf6 {[%clk 0:03:00]} 5. d3 {[%clk 0:02:44]}  d6 {[%clk 0:02:59]} 6. c3 {[%clk 0:02:42]}  g6 {[%clk 0:02:59]} 7. O-O {[%clk 0:02:19]}  Bg7 {[%clk 0:02:59]} 8. Re1 {[%clk 0:01:19]}  O-O {[%clk 0:02:58]} 9. Nbd2 {[%clk 0:01:18]}  Ne7 {[%clk 0:02:48]} 10. d4 {[%clk 0:01:16]}  b5 {[%clk 0:02:41]} 11. Bb3 {[%clk 0:01:16]}  exd4 {[%clk 0:02:39]} 12. cxd4 {[%clk 0:01:17]}  c5 {[%clk 0:02:38]} 13. e5 {[%clk 0:01:11]}  Nfd5 {[%clk 0:02:35]} 14. exd6 {[%clk 0:01:10]}  Qxd6 {[%clk 0:02:31]} 15. Ne4 {[%clk 0:01:10]}  Qb6 {[%clk 0:02:22]} 16. dxc5 {[%clk 0:01:10]}  Qc7 {[%clk 0:02:17]} 17. Bxd5 {[%clk 0:01:08]}  Rd8 {[%clk 0:02:10]} 18. Nd6 {[%clk 0:01:08]}  Nxd5 {[%clk 0:02:07]} 19. Qxd5 {[%clk 0:01:07]}  Be6 {[%clk 0:02:05]} 20. Rxe6 {[%clk 0:01:04]}  fxe6 {[%clk 0:02:05]} 21. Qxe6+ {[%clk 0:01:05]}  Kh8 {[%clk 0:02:01]} 22. Be3 {[%clk 0:00:56]}  Rf8 {[%clk 0:01:56]} 23. Ng5 {[%clk 0:00:55]}  Bxb2 {[%clk 0:01:52]} 24. Rb1 {[%clk 0:00:48]}  Bc3 {[%clk 0:01:38]} 25. Ngf7+ {[%clk 0:00:44]}  Rxf7 {[%clk 0:01:27]} 26. Nxf7+ {[%clk 0:00:43]}  Kg8 {[%clk 0:01:17]} 27. Nd6+ {[%clk 0:00:42]}  Kh8 {[%clk 0:01:16]} 28. Bf4 {[%clk 0:00:30]}  Rf8 {[%clk 0:01:09]} 29. Be5+ {[%clk 0:00:29]}  Bxe5 {[%clk 0:01:08]} 30. Qxe5+ {[%clk 0:00:30]}  Kg8 {[%clk 0:01:07]} 31. Rc1 {[%clk 0:00:28]}  b4 {[%clk 0:01:03]} 32. Qd5+ {[%clk 0:00:27]}  Kg7 {[%clk 0:01:02]} 33. Qd4+ {[%clk 0:00:26]}  Kg8 {[%clk 0:01:02]} 34. Qxb4 {[%clk 0:00:26]}  Rb8 {[%clk 0:01:01]} 35. Qc4+ {[%clk 0:00:26]}  Kh8 {[%clk 0:00:47]} 36. h4 {[%clk 0:00:26]} 1-0


[Site "https://www.chess.com"]

[Event "Titled Tuesday Blitz July 25 Late 2023"]
[White "Bellissimo, Joseph F."]
[Black "Rostomyan, Mikayel"]
[WhiteFideId "2609843"]
[BlackFideId "13313754"]
[WhiteElo "2363"]
[BlackElo "2558"]
[Result "0-1"]
[Round "2"]
[TimeControl "180+2"]
[Date "2023.07.25"]
[WhiteClock "0:02:21"]
[BlackClock "0:01:48"]
[Board "133"]

1. e4 {[%clk 0:03:00]}  c5 {[%clk 0:02:21]} 2. Nf3 {[%clk 0:02:48]}  Nc6 {[%clk 0:02:17]} 3. c3 {[%clk 0:02:48]}  Nf6 {[%clk 0:02:16]} 4. e5 {[%clk 0:02:47]}  Nd5 {[%clk 0:02:16]} 5. d4 {[%clk 0:02:48]}  cxd4 {[%clk 0:02:11]} 6. cxd4 {[%clk 0:02:49]}  d6 {[%clk 0:02:12]} 7. Bc4 {[%clk 0:02:49]}  Nb6 {[%clk 0:02:11]} 8. Bd3 {[%clk 0:02:46]}  Bg4 {[%clk 0:02:07]} 9. O-O {[%clk 0:02:44]}  Nxd4 {[%clk 0:01:57]} 10. e6 {[%clk 0:02:24]}  Nxf3+ {[%clk 0:01:53]} 11. Qxf3 {[%clk 0:02:23]}  Bxf3 {[%clk 0:01:48]} 12. Bb5+ {[%clk 0:02:21]}  Bc6 {[%clk 0:01:48]} 0-1


[Site "https://www.chess.com"]

[Event "Titled Tuesday Blitz July 25 Late 2023"]
[White "Zhou, Qiyu"]
[Black "Fonseca Manrique, Enrique"]
[WhiteFideId "505161"]
[BlackFideId "5114330"]
[WhiteElo "2363"]
[BlackElo "2552"]
[Result "0-1"]
[Round "2"]
[TimeControl "180+2"]
[Date "2023.07.25"]
[WhiteClock "0:00:04"]
[BlackClock "0:00:07"]
[Board "134"]

1. e4 {[%clk 0:03:00]}  c5 {[%clk 0:02:54]} 2. Nf3 {[%clk 0:02:54]}  e6 {[%clk 0:02:54]} 3. d4 {[%clk 0:02:53]}  cxd4 {[%clk 0:02:55]} 4. Nxd4 {[%clk 0:02:53]}  Nc6 {[%clk 0:02:55]} 5. Nb5 {[%clk 0:02:44]}  d6 {[%clk 0:02:51]} 6. N1c3 {[%clk 0:02:44]}  a6 {[%clk 0:02:46]} 7. Na3 {[%clk 0:02:43]}  Nf6 {[%clk 0:02:44]} 8. Bg5 {[%clk 0:02:33]}  Be7 {[%clk 0:02:43]} 9. Bd3 {[%clk 0:02:30]}  h6 {[%clk 0:02:43]} 10. Bh4 {[%clk 0:02:27]}  O-O {[%clk 0:02:39]} 11. O-O {[%clk 0:02:26]}  b5 {[%clk 0:02:38]} 12. Nab1 {[%clk 0:02:24]}  Bb7 {[%clk 0:02:37]} 13. Nd2 {[%clk 0:02:21]}  Rc8 {[%clk 0:02:25]} 14. Bg3 {[%clk 0:02:06]}  Qb6 {[%clk 0:02:20]} 15. Kh1 {[%clk 0:02:05]}  Ne5 {[%clk 0:02:17]} 16. f4 {[%clk 0:02:01]}  Nc4 {[%clk 0:02:12]} 17. Bxc4 {[%clk 0:01:41]}  bxc4 {[%clk 0:02:11]} 18. Rb1 {[%clk 0:01:41]}  d5 {[%clk 0:01:46]} 19. e5 {[%clk 0:01:39]}  Ne4 {[%clk 0:01:42]} 20. Ndxe4 {[%clk 0:01:33]}  dxe4 {[%clk 0:01:42]} 21. Qe2 {[%clk 0:01:31]}  e3 {[%clk 0:01:39]} 22. Rfe1 {[%clk 0:01:26]}  Qc6 {[%clk 0:01:31]} 23. Nd1 {[%clk 0:01:22]}  Bc5 {[%clk 0:01:29]} 24. Rg1 {[%clk 0:01:06]}  Qe4 {[%clk 0:01:06]} 25. Nc3 {[%clk 0:01:04]}  Qg6 {[%clk 0:01:06]} 26. Nd1 {[%clk 0:01:00]}  Rfd8 {[%clk 0:00:32]} 27. Nxe3 {[%clk 0:00:55]}  Qe4 {[%clk 0:00:26]} 28. Rbe1 {[%clk 0:00:53]}  Bxe3 {[%clk 0:00:20]} 29. Qxe3 {[%clk 0:00:53]}  Qxc2 {[%clk 0:00:21]} 30. Re2 {[%clk 0:00:52]}  Qd3 {[%clk 0:00:20]} 31. Rge1 {[%clk 0:00:45]}  Rd7 {[%clk 0:00:16]} 32. Bf2 {[%clk 0:00:40]}  Qg6 {[%clk 0:00:14]} 33. Bg1 {[%clk 0:00:33]}  Rcd8 {[%clk 0:00:13]} 34. Qc3 {[%clk 0:00:18]}  h5 {[%clk 0:00:10]} 35. Qxc4 {[%clk 0:00:17]}  h4 {[%clk 0:00:11]} 36. h3 {[%clk 0:00:09]}  Rd3 {[%clk 0:00:11]} 37. Bh2 {[%clk 0:00:03]}  Rxh3 {[%clk 0:00:09]} 38. Qc7 {[%clk 0:00:03]}  Qg3 {[%clk 0:00:05]} 39. Qxd8+ {[%clk 0:00:03]}  Kh7 {[%clk 0:00:05]} 40. Kg1 {[%clk 0:00:03]}  Qxh2+ {[%clk 0:00:05]} 41. Kf2 {[%clk 0:00:03]}  Qxf4+ {[%clk 0:00:06]} 42. Kg1 {[%clk 0:00:03]}  Qh2+ {[%clk 0:00:06]} 43. Kf1 {[%clk 0:00:03]}  Qh1+ {[%clk 0:00:06]} 44. Kf2 {[%clk 0:00:04]}  Qxg2# {[%clk 0:00:07]} 0-1


[Site "https://www.chess.com"]

[Event "Titled Tuesday Blitz July 25 Late 2023"]
[White "Antonica, Dragos-Andrei"]
[Black "Gavarrete, Nahun"]
[WhiteFideId "1246372"]
[BlackFideId "8400709"]
[WhiteElo "2537"]
[BlackElo "2353"]
[Result "1-0"]
[Round "2"]
[TimeControl "180+2"]
[Date "2023.07.25"]
[WhiteClock "0:01:08"]
[BlackClock "0:00:19"]
[Board "137"]

1. b3 {[%clk 0:03:00]}  e5 {[%clk 0:02:56]} 2. Bb2 {[%clk 0:03:00]}  Nc6 {[%clk 0:02:54]} 3. c4 {[%clk 0:03:01]}  Nf6 {[%clk 0:02:54]} 4. e3 {[%clk 0:03:01]}  d5 {[%clk 0:02:55]} 5. cxd5 {[%clk 0:03:01]}  Nxd5 {[%clk 0:02:55]} 6. a3 {[%clk 0:03:01]}  Bd6 {[%clk 0:02:53]} 7. Qc2 {[%clk 0:03:02]}  O-O {[%clk 0:02:52]} 8. Nf3 {[%clk 0:03:01]}  f5 {[%clk 0:02:43]} 9. d3 {[%clk 0:03:01]}  Be6 {[%clk 0:02:37]} 10. Nbd2 {[%clk 0:03:01]}  Kh8 {[%clk 0:02:34]} 11. Be2 {[%clk 0:03:01]}  Qe7 {[%clk 0:02:33]} 12. b4 {[%clk 0:03:01]}  Bg8 {[%clk 0:02:27]} 13. b5 {[%clk 0:02:53]}  Na5 {[%clk 0:02:26]} 14. Nc4 {[%clk 0:02:54]}  Nxc4 {[%clk 0:02:18]} 15. dxc4 {[%clk 0:02:55]}  Nb6 {[%clk 0:02:14]} 16. c5 {[%clk 0:02:55]}  Bxc5 {[%clk 0:02:14]} 17. Bxe5 {[%clk 0:02:55]}  Bxa3 {[%clk 0:02:10]} 18. O-O {[%clk 0:02:52]}  Bd6 {[%clk 0:02:07]} 19. Bd4 {[%clk 0:02:50]}  Nd5 {[%clk 0:01:58]} 20. Qb2 {[%clk 0:02:44]}  f4 {[%clk 0:01:51]} 21. e4 {[%clk 0:02:42]}  Nb4 {[%clk 0:01:36]} 22. Rfc1 {[%clk 0:02:31]}  c5 {[%clk 0:01:36]} 23. e5 {[%clk 0:02:10]}  cxd4 {[%clk 0:01:28]} 24. exd6 {[%clk 0:02:10]}  Qxd6 {[%clk 0:01:29]} 25. Nxd4 {[%clk 0:02:10]}  Rfd8 {[%clk 0:01:22]} 26. Nf5 {[%clk 0:02:06]}  Qf8 {[%clk 0:01:18]} 27. Nxg7 {[%clk 0:02:03]}  Qxg7 {[%clk 0:01:19]} 28. Qxb4 {[%clk 0:02:03]}  Bd5 {[%clk 0:01:13]} 29. f3 {[%clk 0:02:03]}  Rd7 {[%clk 0:01:05]} 30. Qxf4 {[%clk 0:01:59]}  Rf8 {[%clk 0:01:05]} 31. Qg3 {[%clk 0:01:56]}  Qd4+ {[%clk 0:01:04]} 32. Qf2 {[%clk 0:01:56]}  Qe5 {[%clk 0:00:57]} 33. Bf1 {[%clk 0:01:49]}  Rg7 {[%clk 0:00:57]} 34. Re1 {[%clk 0:01:47]}  Qf6 {[%clk 0:00:54]} 35. Ra3 {[%clk 0:01:40]}  b6 {[%clk 0:00:48]} 36. Kh1 {[%clk 0:01:35]}  Qg5 {[%clk 0:00:44]} 37. Rae3 {[%clk 0:01:34]}  Bb7 {[%clk 0:00:35]} 38. Re5 {[%clk 0:01:31]}  Qg6 {[%clk 0:00:33]} 39. Re7 {[%clk 0:01:24]}  Rfg8 {[%clk 0:00:30]} 40. Qd4 {[%clk 0:01:20]}  Bxf3 {[%clk 0:00:20]} 41. Rxg7 {[%clk 0:01:12]}  Rxg7 {[%clk 0:00:19]} 42. gxf3 {[%clk 0:01:08]} 1-0


[Site "https://www.chess.com"]